bitfinex/quotes_ETHUSD_20240601
["timestamp","ask_amount","ask_price","bid_price","bid_amount"]
[1717237032872,0.06842688,3792.2,3791.8,0.634]
[1717237033034,2.2832,3792.3,3791.8,0.634]
[1717237033233,0.0684222,3792.1,3791.8,0.634]
[1717237033435,2.2832,3792.3,3791.8,0.634]
[1717237033630,0.06853476,3792.0,3791.8,0.634]
[1717237033940,0.06853008,3791.9,3791.8,0.634]
[1717237034134,2.2832,3792.3,3791.8,0.634]
[1717237034447,0.06854412,3792.2,3791.8,0.634]
[1717237034972,2.2832,3792.3,3792.0,0.634]
[1717237035333,0.06821608,3792.2,3792.0,0.634]
[1717237035540,2.2832,3792.3,3792.0,0.634]
[1717237035770,0.06821608,3792.2,3792.0,0.634]
[1717237035934,2.2832,3792.3,3792.0,0.634]
[1717237036129,0.06821608,3792.2,3792.0,0.634]
[1717237036337,2.2832,3792.3,3792.0,0.634]
[1717237036680,0.06821608,3792.2,3792.0,0.634]
[1717237037035,2.2832,3792.3,3792.0,0.634]
[1717237037236,0.0682114,3792.1,3792.0,0.634]
[1717237037534,2.2832,3792.3,3792.0,0.634]
[1717237037734,2.2832,3792.7,3792.0,0.634]
[1717237037955,0.0682348,3792.6,3792.0,0.634]
[1717237038161,0.0682348,3792.6,3792.1,0.05273754]
[1717237038371,0.0682348,3792.6,3792.0,0.68673596]
[1717237039357,0.0682348,3792.6,3792.0,0.634]
[1717237041170,0.0682348,3792.6,3791.9,0.634]
[1717237050891,0.0682348,3792.6,3791.8,0.634]
[1717237059803,0.0682348,3792.6,3792.2,0.634]
[1717237060176,2.2832,3792.7,3792.2,0.634]
[1717237060378,0.06805558,3792.6,3792.2,0.634]
[1717237060578,2.2832,3792.7,3792.2,0.634]
[1717237060884,0.06805558,3792.6,3792.2,0.634]
[1717237061406,2.2832,3792.7,3792.2,0.634]
[1717237061608,0.0680509,3792.5,3792.2,0.634]
[1717237061818,2.2832,3792.7,3792.2,0.634]
[1717237061972,0.0680443,3792.4,3792.2,0.634]
[1717237062171,2.2832,3792.7,3792.2,0.634]
[1717237062583,0.06805558,3792.6,3792.2,0.634]
[1717237062782,2.2832,3792.7,3792.2,0.634]
[1717237063088,0.06814502,3792.6,3792.2,0.634]
[1717237063294,2.2832,3792.7,3792.2,0.634]
[1717237063492,0.06814035,3792.5,3792.2,0.634]
[1717237063693,2.2832,3792.7,3791.9,2.63718]
[1717237063893,0.06814184,3792.4,3792.0,0.634]
[1717237064090,2.2832,3792.7,3792.0,0.634]
[1717237064711,0.06824372,3792.6,3792.0,0.634]
[1717237065311,2.2832,3792.7,3792.0,0.634]
[1717237065698,0.06824372,3792.6,3792.0,0.634]
[1717237066115,2.2832,3792.7,3792.0,0.634]
[1717237066622,0.0682418,3792.6,3792.0,0.634]
[1717237067114,2.2832,3792.7,3792.0,0.634]
[1717237067480,0.06824372,3792.6,3792.0,0.634]
[1717237067680,2.2832,3792.7,3792.0,0.634]
[1717237067906,0.06823905,3792.5,3792.0,0.634]
[1717237068108,2.2832,3792.7,3792.0,0.634]
[1717237068318,0.06823437,3792.4,3792.0,0.634]
[1717237068524,2.2832,3792.7,3792.0,0.634]
[1717237068923,0.06824549,3792.6,3792.0,0.634]
[1717237069299,2.2832,3792.7,3792.0,0.634]
[1717237069522,0.06824081,3792.5,3792.0,0.634]
[1717237069924,2.2832,3792.7,3792.0,0.634]
[1717237070389,0.06824549,3792.6,3792.0,0.634]
[1717237070581,2.2832,3792.7,3792.0,0.634]
[1717237070797,0.06824549,3792.6,3792.0,0.634]
[1717237070999,2.2832,3792.7,3792.0,0.634]
[1717237071210,0.06824549,3792.6,3792.0,0.634]
[1717237071415,2.2832,3792.7,3792.0,0.634]
[1717237071622,0.06824549,3792.6,3792.0,0.634]
[1717237072125,2.2832,3792.7,3792.0,0.634]
[1717237072523,0.06824549,3792.6,3792.0,0.634]
[1717237072933,2.2832,3792.7,3792.0,0.634]
[1717237073293,0.06824549,3792.6,3792.0,0.634]
[1717237073634,2.2832,3792.7,3792.0,0.634]
[1717237074007,0.06824549,3792.6,3792.0,0.634]
[1717237074368,2.2832,3792.7,3792.0,0.634]
[1717237074703,0.06824549,3792.6,3792.0,0.634]
[1717237075128,2.2832,3792.7,3792.0,0.634]
[1717237075625,0.06824549,3792.6,3792.0,0.634]
[1717237075996,2.2832,3792.7,3792.0,0.634]
[1717237076196,0.06824549,3792.6,3792.0,0.634]
[1717237076399,2.2832,3792.7,3792.0,0.634]
[1717237076598,0.06824549,3792.6,3792.0,0.634]
[1717237076905,2.2832,3792.7,3792.0,0.634]
[1717237077323,0.06824549,3792.6,3792.0,0.634]
[1717237077631,2.2832,3792.7,3792.0,0.634]
[1717237077807,0.06824081,3792.5,3792.0,0.634]
[1717237078007,2.2832,3792.7,3792.0,0.634]
[1717237078315,0.06824549,3792.6,3792.0,0.634]
[1717237078693,2.2832,3792.7,3792.0,0.634]
[1717237079132,0.06824549,3792.6,3792.0,0.634]
[1717237079698,2.2832,3792.7,3792.0,0.634]
[1717237080099,0.06832259,3792.6,3792.0,0.634]
[1717237080501,2.2832,3792.7,3792.0,0.634]
[1717237080837,0.06832259,3792.6,3792.0,0.634]
[1717237081039,2.2832,3792.7,3792.0,0.634]
[1717237081435,0.06832259,3792.6,3792.0,0.634]
[1717237082045,2.2832,3792.7,3792.0,0.634]
[1717237082440,0.06832259,3792.6,3792.0,0.634]
[1717237082801,2.3221,3793.2,3792.5,0.634]
[1717237083012,2.3221,3793.2,3792.4,2.2899]
[1717237083013,0.06834797,3793.1,3792.7,0.634]
[1717237083300,0.06834797,3793.1,3792.6,0.634]
[1717237084142,2.3221,3793.2,3792.6,0.634]
[1717237084543,0.0686779,3793.1,3792.6,0.634]
[1717237084846,2.3221,3793.2,3792.6,0.634]
[1717237085242,0.06867983,3793.1,3792.6,0.634]
[1717237085645,2.3221,3793.2,3792.6,0.634]
[1717237086150,0.06878169,3793.1,3792.6,0.634]
[1717237086453,2.3221,3793.2,3792.6,0.634]
[1717237086812,0.0688463,3793.1,3792.6,0.634]
[1717237087013,2.3221,3793.2,3792.6,0.634]
[1717237087358,0.0688463,3793.1,3792.6,0.634]
[1717237087852,2.3221,3793.2,3792.6,0.634]
[1717237088216,0.0688463,3793.1,3792.6,0.634]
[1717237088417,2.3221,3793.2,3792.6,0.634]
[1717237089121,0.06884438,3793.1,3792.8,0.634]
[1717237089317,2.4714,3793.5,3792.8,0.634]
[1717237089543,0.06879654,3793.0,3792.8,0.634]
[1717237089746,2.4714,3793.5,3792.8,0.634]
[1717237089935,0.06870067,3792.9,3792.8,0.634]
[1717237090138,2.4714,3793.5,3792.8,0.634]
[1717237090557,0.06880908,3793.4,3793.0,0.634]
[1717237090730,0.06880908,3793.4,3793.2,0.634]
[1717237090934,2.4714,3793.8,3793.2,0.634]
[1717237091137,0.06880441,3793.3,3793.2,0.634]
[1717237091325,2.4714,3793.8,3793.2,0.634]
[1717237091525,0.06880633,3793.3,3793.2,0.634]
[1717237091736,2.4714,3793.8,3793.2,0.634]
[1717237092252,0.06882503,3793.7,3793.2,0.634]
[1717237094623,0.06882503,3793.7,3793.0,2.63639]
[1717237094839,0.06882503,3793.7,3793.2,0.634]
[1717237097130,0.06882503,3793.7,3793.0,2.63639]
[1717237097332,0.06882503,3793.7,3793.1,0.634]
[1717237097865,0.06882503,3793.7,3793.0,2.63639]
[1717237097866,0.06882503,3793.7,3793.3,0.634]
[1717237098227,2.4714,3793.8,3793.3,0.634]
[1717237098577,0.06882696,3793.7,3793.3,0.634]
[1717237098870,2.4714,3793.8,3793.3,0.634]
[1717237099069,0.06882228,3793.6,3793.3,0.634]
[1717237099271,0.06882311,3793.7,3793.3,0.634]
[1717237099455,2.4714,3793.8,3793.3,0.634]
[1717237099658,0.06881843,3793.6,3793.3,0.634]
[1717237099859,0.06882311,3793.7,3793.3,0.634]
[1717237100164,2.4714,3793.8,3793.3,0.634]
[1717237100468,0.06882311,3793.7,3793.1,0.634]
[1717237102464,0.06882311,3793.7,3793.3,0.634]
[1717237102832,2.4714,3793.8,3793.3,0.634]
[1717237103030,0.06882503,3793.7,3793.3,0.634]
[1717237103255,3.41796928,3794.3,3793.3,0.634]
[1717237103469,0.06882036,3793.6,3793.3,0.634]
[1717237103667,2.4714,3794.2,3793.3,0.634]
[1717237103969,0.634,3794.1,3793.1,0.634]
[1717237104173,2.3854,3794.0,3793.1,0.634]
[1717237104577,0.06883438,3793.9,3793.1,0.634]
[1717237109393,0.06883438,3793.9,3793.0,5.01429]
[1717237109590,0.06883438,3793.9,3793.0,5.64829]
[1717237109765,2.3854,3793.8,3793.0,5.64829]
[1717237110087,0.06889055,3793.7,3793.0,5.64829]
[1717237111753,0.06889055,3793.7,3793.4,0.634]
[1717237111978,2.63555,3794.3,3793.4,0.634]
[1717237112259,3.501045,3794.3,3793.4,0.634]
[1717237112467,0.0670284,3794.2,3793.4,0.634]
[1717237116899,0.0670284,3794.2,3793.5,2.63608]
[1717237117279,2.3854,3794.4,3793.5,2.63608]
[1717237117463,0.06713587,3794.1,3793.5,2.63608]
[1717237117791,2.3854,3794.4,3793.5,2.63608]
[1717237117971,0.0671312,3794.0,3793.5,2.63608]
[1717237118172,2.3854,3794.4,3793.5,2.63608]
[1717237118379,0.06713886,3793.9,3793.5,2.63608]
[1717237118580,2.3854,3794.4,3793.5,2.63608]
[1717237119101,0.06715756,3794.3,3793.5,2.63608]
[1717237122322,0.06715756,3794.3,3793.5,4.96118]
[1717237126604,0.06715756,3794.3,3793.5,2.63608]
[1717237126808,2.4625,3794.1,3793.5,2.63608]
[1717237127120,0.0671493,3794.0,3793.5,2.63608]
[1717237127689,0.0671493,3794.0,3793.4,0.634]
[1717237128095,2.4625,3794.1,3793.4,0.634]
[1717237128481,2.4625,3794.1,3793.3,2.2751]
[1717237128703,2.4625,3794.1,3793.3,2.9091]
[1717237129576,2.63548,3794.4,3793.7,0.634]
[1717237130117,0.06710451,3794.3,3793.7,0.634]
[1717237134601,2.4625,3794.7,3793.9,2.9091]
[1717237135012,0.06722589,3794.6,3794.3,0.634]
[1717237135219,2.4625,3795.2,3794.3,0.634]
[1717237135623,0.06724811,3795.1,3794.3,0.634]
[1717237143281,0.06724811,3795.1,3794.2,2.63556]
[1717237143453,0.06724811,3795.1,3794.3,0.634]
[1717237144559,0.06724811,3795.1,3794.4,2.297]
[1717237147472,0.06724811,3795.1,3794.2,2.63556]
[1717237147640,0.69987631,3795.1,3794.2,2.63556]
[1717237148469,0.06724811,3795.1,3794.6,0.634]
[1717237148669,2.63481,3795.4,3794.6,0.634]
[1717237148875,2.63481,3795.4,3794.3,2.297]
[1717237148876,0.06743046,3795.3,3794.8,0.634]
[1717237149616,0.06743046,3795.3,3794.6,0.634]
[1717237157808,2.344,3795.2,3794.6,0.634]
[1717237158320,0.06744808,3795.1,3794.6,0.634]
[1717237165822,0.06744808,3795.1,3794.7,0.05270218]
[1717237166031,0.06744808,3795.1,3794.8,0.634]
[1717237166238,2.2844,3795.5,3794.8,0.634]
[1717237166530,0.06748636,3795.4,3794.6,0.634]
[1717237178152,0.06748636,3795.4,3794.4,2.63542]
[1717237178355,2.2844,3795.3,3794.5,0.634]
[1717237178656,2.35187706,3795.3,3794.5,0.634]
[1717237179068,2.35187706,3795.3,3794.4,2.63542]
[1717237187287,2.35187706,3795.3,3794.5,0.634]
[1717237197191,2.35187706,3795.3,3794.4,2.63542]
[1717237197398,2.35187706,3795.3,3794.6,0.634]
[1717237201899,2.3693,3795.2,3794.4,3.26942]
[1717237202399,2.3693,3795.0,3794.4,3.26942]
[1717237202763,0.06723758,3794.9,3794.4,3.26942]
[1717237203810,0.06723099,3794.8,3794.4,3.26942]
[1717237203955,2.3693,3795.0,3794.4,3.26942]
[1717237204291,0.06722824,3794.7,3794.4,3.26942]
[1717237204496,2.3693,3795.0,3794.4,3.26942]
[1717237204795,0.06723758,3794.9,3794.4,3.26942]
[1717237205161,2.38,3794.8,3794.3,7.43]
[1717237205354,0.06705654,3794.7,3794.3,7.43]
[1717237205569,2.38,3794.6,3794.3,7.43]
[1717237205768,2.38,3794.6,3793.8,0.634]
[1717237205987,2.38,3794.4,3793.8,0.634]
[1717237206214,0.06726399,3794.3,3793.7,8.064]
[1717237206408,2.38,3794.2,3793.7,8.064]
[1717237206604,0.06725657,3794.1,3793.7,8.064]
[1717237206803,2.38,3794.2,3793.7,8.064]
[1717237207121,0.06714255,3794.1,3793.7,8.064]
[1717237207420,2.38,3794.2,3793.7,8.064]
[1717237207587,0.06714255,3794.1,3793.7,8.064]
[1717237207918,2.38,3794.2,3793.7,8.064]
[1717237208224,0.06714255,3794.1,3793.7,8.064]
[1717237208425,2.38,3794.2,3793.7,8.064]
[1717237208791,0.06714255,3794.1,3793.7,8.064]
[1717237209004,2.38,3794.2,3793.7,7.43]
[1717237209197,0.06714255,3794.1,3793.7,7.43]
[1717237209597,0.06714255,3794.1,3793.6,0.634]
[1717237209798,2.38,3794.2,3793.6,0.634]
[1717237210128,2.38,3794.2,3793.5,0.634]
[1717237217102,2.30866257,3794.2,3793.5,0.634]
[1717237217501,0.06674303,3794.1,3793.5,0.634]
[1717237219320,0.06674303,3794.1,3793.3,2.6362]
[1717237219523,2.30866257,3794.2,3793.5,0.634]
[1717237219921,0.06680046,3794.1,3793.5,0.634]
[1717237223438,0.06680046,3794.1,3793.7,0.634]
[1717237227856,0.06680046,3794.1,3793.5,0.634]
[1717237228150,2.30866257,3794.2,3793.5,0.634]
[1717237228505,0.06680662,3794.1,3793.5,0.634]
[1717237228828,2.30866257,3794.2,3793.5,0.634]
[1717237229021,0.06680777,3794.1,3793.5,0.634]
[1717237229201,2.30866257,3794.2,3793.5,0.634]
[1717237229640,0.06680969,3794.1,3793.5,0.634]
[1717237229941,2.30866257,3794.2,3793.5,0.634]
[1717237230239,0.06680969,3794.1,3793.5,0.634]
[1717237230441,2.97168166,3794.8,3794.0,0.634]
[1717237230442,2.4911,3794.5,3794.0,0.634]
[1717237230764,2.4911,3795.2,3794.4,0.634]
[1717237234745,2.4911,3795.2,3794.1,10.06564]
[1717237234948,2.4911,3795.2,3794.3,0.634]
[1717237237009,3.1251,3795.2,3794.1,10.06564]
[1717237237207,3.1251,3795.2,3794.2,0.634]
[1717237239548,3.1251,3795.2,3794.1,10.06564]
[1717237239773,3.1251,3795.2,3794.2,0.634]
[1717237240445,2.4911,3795.1,3794.2,0.634]
[1717237241444,2.4911,3795.1,3794.1,10.06564]
[1717237241620,2.4911,3795.1,3794.1,10.69964]
[1717237243545,2.4911,3795.1,3794.1,10.06564]
[1717237243860,2.4911,3795.1,3794.1,10.69964]
[1717237246169,0.634,3794.8,3794.1,7.43]
[1717237246467,0.09996562,3794.7,3794.1,7.43]
[1717237246642,2.3453,3794.9,3794.1,7.43]
[1717237246848,0.09996941,3794.8,3794.1,7.43]
[1717237247968,0.09996941,3794.8,3794.0,0.634]
[1717237251602,2.3453,3794.7,3794.0,0.634]
[1717237251900,0.09996182,3794.6,3793.8,0.634]
[1717237254812,2.3453,3794.5,3793.8,0.634]
[1717237255021,0.09995422,3794.4,3793.8,0.634]
[1717237261305,0.09995422,3794.4,3793.7,7.43]
[1717237261507,2.3453,3794.3,3793.7,7.43]
[1717237261904,0.09983728,3794.2,3793.7,7.43]
[1717237265754,0.09983728,3794.2,3793.4,0.634]
[1717237266159,2.3453,3794.3,3793.4,0.634]
[1717237276276,2.3453,3794.3,3793.3,1.054683]
[1717237276458,2.3453,3794.3,3793.5,0.634]
[1717237281470,2.6356,3794.2,3793.3,1.054683]
[1717237281659,2.50242882,3794.1,3793.5,0.634]
[1717237286650,2.50242882,3794.1,3793.3,0.634]
[1717237287285,2.50242882,3794.1,3793.2,8.064]
[1717237287452,2.4026,3794.1,3793.2,8.064]
[1717237288375,2.96982,3794.1,3793.2,7.43]
[1717237288766,2.4911,3793.9,3793.2,7.43]
[1717237288946,2.4911,3793.9,3793.1,3.68281514]
[1717237295599,2.4911,3793.9,3793.1,1.04650514]
[1717237296574,2.6356,3794.2,3793.1,3.68279514]
[1717237296763,2.4911,3794.1,3793.6,0.634]
[1717237297195,0.09973255,3794.0,3793.6,0.634]
[1717237299870,0.09973255,3794.0,3793.4,0.634]
[1717237301877,0.09973255,3794.0,3793.5,2.63608]
[1717237302079,0.09973255,3794.0,3793.6,0.634]
[1717237310396,0.09973255,3794.0,3793.5,2.63608]
[1717237310805,2.4911,3794.1,3793.5,2.63608]
[1717237311715,0.09988359,3794.0,3793.5,2.63608]
[1717237313685,2.344,3793.9,3793.5,2.63608]
[1717237313888,0.09987599,3793.8,3793.5,2.63608]
[1717237314194,0.09987599,3793.8,3793.3,0.634]
[1717237315895,2.344,3793.9,3793.3,0.634]
[1717237316090,0.09987599,3793.8,3793.3,0.634]
[1717237321103,2.344,3793.9,3793.3,0.634]
[1717237321303,0.09985334,3793.8,3793.3,0.634]
[1717237330241,2.4934,3793.7,3793.3,0.634]
[1717237330454,2.59324365,3793.7,3793.3,0.634]
[1717237337616,0.09984365,3793.7,3793.3,0.634]
[1717237337806,2.4934,3793.9,3793.3,0.634]
[1717237338141,0.09985994,3793.6,3793.3,0.634]
[1717237338319,2.4934,3793.9,3793.3,0.634]
[1717237338641,0.09989837,3793.8,3793.3,0.634]
[1717237346670,0.09989837,3793.8,3793.4,2.63615]
[1717237346959,0.09989837,3793.8,3793.7,0.634]
[1717237347139,0.09989837,3793.8,3793.4,2.63615]
[1717237347341,2.3222,3793.7,3793.4,3.27015]
[1717237348753,2.3222,3793.7,3793.4,2.63615]
[1717237354246,2.4808,3794.3,3793.4,2.63615]
[1717237354426,0.09991234,3793.6,3793.4,2.63615]
[1717237354625,2.4808,3794.1,3793.4,2.63615]
[1717237354828,0.09990854,3793.5,3793.4,2.63615]
[1717237355027,2.4808,3794.1,3793.4,2.63615]
[1717237355245,0.09990854,3793.5,3793.4,2.63615]
[1717237355446,2.4808,3794.1,3793.4,2.63615]
[1717237355647,0.09990854,3793.5,3793.4,2.63615]
[1717237355853,2.4808,3794.1,3793.4,2.63615]
[1717237356132,0.09990854,3793.5,3793.4,2.63615]
[1717237356335,2.4808,3794.1,3793.4,2.63615]
[1717237356672,0.09992754,3794.0,3793.4,2.63615]
[1717237367142,0.09992754,3794.0,3793.4,5.02645]
[1717237368775,0.09992754,3794.0,3793.4,2.63615]
[1717237372201,0.35800029,3794.0,3793.0,0.634]
[1717237372373,0.09992754,3794.0,3793.0,0.634]
[1717237372709,2.3117,3793.9,3793.0,0.634]
[1717237374855,2.3117,3793.9,3792.9,5.02678]
[1717237375057,2.3117,3793.9,3792.9,5.66078]
[1717237375262,2.3117,3793.9,3792.9,5.02678]
[1717237375466,2.3117,3793.9,3793.0,0.634]
[1717237376453,2.60627,3793.9,3793.0,0.634]
[1717237376657,0.09986447,3793.8,3793.0,0.634]
[1717237376892,2.3117,3793.7,3793.0,0.634]
[1717237379700,0.68677239,3793.6,3792.8,7.43]
[1717237379914,2.36447239,3793.5,3792.8,7.43]
[1717237380105,2.46425286,3793.5,3792.8,7.43]
[1717237380275,2.3117,3793.5,3792.8,7.43]
[1717237382904,2.3117,3793.5,3792.6,0.634]
[1717237383108,0.634,3793.2,3792.4,22.3068]
[1717237383299,2.2911,3793.1,3792.4,10.0668]
[1717237383487,2.39067417,3793.1,3792.4,10.0668]
[1717237384100,2.2911,3793.1,3792.4,10.0668]
[1717237384505,0.09957037,3793.0,3792.4,10.0668]
[1717237388603,0.09957037,3793.0,3792.4,2.6368]
[1717237389003,2.2911,3793.1,3792.4,2.6368]
[1717237390636,2.58361,3793.1,3792.3,0.634]
[1717237390931,2.41677037,3793.0,3792.2,0.41259373]
[1717237392020,0.73357037,3793.0,3792.0,7.43]
[1717237392187,2.3172,3792.9,3792.0,8.064]
[1717237392586,0.09918052,3792.8,3792.0,8.064]
[1717237398888,0.09918052,3792.8,3792.2,0.634]
[1717237399089,0.09918052,3792.8,3792.1,2.63703]
[1717237399090,2.63639,3793.1,3792.4,0.634]
[1717237399310,0.09908113,3792.7,3792.4,0.634]
[1717237399511,2.63639,3793.1,3792.4,0.634]
[1717237399825,0.09907732,3792.6,3792.4,0.634]
[1717237400026,2.3172,3793.3,3792.4,0.634]
[1717237400202,2.875926,3793.3,3792.4,0.634]
[1717237400397,0.09910014,3793.2,3792.4,0.634]
[1717237402328,0.09910014,3793.2,3792.1,2.63703]
[1717237402329,0.09910014,3793.2,3792.2,0.634]
[1717237405305,2.3254,3793.1,3792.2,0.634]
[1717237405632,2.4245765,3793.1,3792.2,0.634]
[1717237406304,2.4245765,3793.1,3792.1,2.63703]
[1717237406552,2.4245765,3793.1,3792.1,3.27103]
[1717237414166,2.4245765,3793.1,3792.1,2.63703]
[1717237414368,2.4245765,3793.1,3792.1,3.27103]
[1717237414879,2.3254,3793.1,3792.1,3.27103]
[1717237423865,0.09905078,3793.0,3792.1,3.27103]
[1717237424169,2.3254,3792.9,3792.1,3.27103]
[1717237424547,0.09904318,3792.8,3792.1,3.27103]
[1717237426334,0.09904318,3792.8,3792.1,2.63703]
[1717237426557,0.09904318,3792.8,3792.1,3.27103]
[1717237429071,2.4929,3792.7,3792.1,3.27103]
[1717237429277,2.59193937,3792.7,3792.1,3.27103]
[1717237430676,2.59193937,3792.7,3792.1,2.63703]
[1717237436987,2.59193937,3792.7,3792.0,7.43]
[1717237437691,2.4929,3792.7,3792.0,7.43]
[1717237438702,2.4929,3792.5,3792.0,7.43]
[1717237439118,0.09568884,3792.4,3792.0,7.43]
[1717237439321,2.4929,3792.5,3791.9,0.41262866]
[1717237442199,2.4929,3792.5,3791.8,0.634]
[1717237442369,2.4929,3792.5,3791.6,14.87734]
[1717237442566,2.4929,3792.5,3791.6,15.932469]
[1717237442762,2.4929,3792.5,3791.7,0.634]
[1717237443367,2.4929,3792.5,3791.6,15.932469]
[1717237443811,2.4929,3792.5,3791.6,2.63734]
[1717237443812,2.4929,3792.3,3791.6,2.63734]
[1717237444212,2.4738,3792.1,3791.5,7.43]
[1717237447301,2.4738,3792.1,3791.4,1.04665788]
[1717237447907,2.4738,3792.1,3791.4,0.41265788]
[1717237448606,2.4738,3792.1,3791.5,0.634]
[1717237470062,2.4738,3792.1,3791.5,3.27147]
[1717237470246,2.4738,3792.1,3791.7,0.634]
[1717237470453,2.3854,3792.7,3791.7,0.634]
[1717237470653,2.950998,3792.7,3791.7,0.634]
[1717237470963,2.3854,3792.5,3791.7,0.634]
[1717237471338,0.09529318,3792.4,3791.7,0.634]
[1717237491518,0.09529318,3792.4,3791.5,10.06747]
[1717237491808,2.3854,3792.5,3791.5,10.06747]
[1717237491809,0.31146932,3792.3,3791.5,10.06747]
[1717237491989,0.09539691,3792.3,3791.5,10.06747]
[1717237492299,2.3854,3792.5,3791.5,10.06747]
[1717237492461,0.634,3792.4,3791.5,10.06747]
[1717237493299,2.2516,3792.3,3791.5,10.06747]
[1717237501371,2.2516,3792.3,3791.5,10.70147]
[1717237503504,2.54016,3792.3,3791.5,10.70147]
[1717237503696,0.634,3792.2,3791.5,7.43]
[1717237504375,2.54016,3792.3,3791.5,7.43]
[1717237506109,0.634,3792.2,3791.5,7.43]
[1717237506279,1.278505,3792.2,3791.5,7.43]
[1717237506481,2.2508,3792.1,3791.5,7.43]
[1717237506875,0.09528471,3792.0,3791.5,7.43]
[1717237507806,4.09288471,3792.0,3791.5,7.43]
[1717237511716,4.09288471,3792.0,3791.2,2.4215]
[1717237517056,4.09288471,3792.0,3791.2,3.0555]
[1717237522984,4.09288471,3792.0,3791.2,2.4215]
[1717237523285,4.09288471,3792.0,3791.2,3.0555]
[1717237526589,4.09288471,3792.0,3791.3,2.63755]
[1717237527157,4.09288471,3792.0,3791.4,0.634]
[1717237529409,4.09288471,3792.0,3791.3,2.63755]
[1717237531191,2.4051,3791.9,3791.3,2.63755]
[1717237531590,0.09512181,3791.8,3791.3,2.63755]
[1717237554205,2.487,3791.7,3791.3,2.63755]
[1717237554521,0.09506895,3791.6,3791.3,2.63755]
[1717237561554,0.09506895,3791.6,3791.1,0.41273854]
[1717237562046,2.487,3791.7,3791.1,0.41273854]
[1717237562642,6.4846,3792.0,3791.1,2.78343854]
[1717237563162,0.09507823,3791.9,3791.1,2.78343854]
[1717237564254,0.09507823,3791.9,3791.2,2.63761]
[1717237565146,0.09507823,3791.9,3791.2,3.27161]
[1717237566158,0.09507823,3791.9,3791.2,2.63761]
[1717237570875,0.09507823,3791.9,3791.3,2.292]
[1717237571168,0.09507823,3791.9,3791.3,2.3447494]
[1717237571524,0.09507823,3791.9,3791.4,3.32428684]
[1717237573443,0.09507823,3791.9,3791.4,2.63754]
[1717237573647,0.09507823,3791.9,3791.4,3.27154]
[1717237575219,0.09507823,3791.9,3791.4,2.63754]
[1717237577676,0.09507823,3791.9,3791.5,0.05274416]
[1717237578978,0.09507823,3791.9,3791.4,2.63754]
[1717237592270,0.09507823,3791.9,3791.5,0.05274428]
[1717237593621,0.09507823,3791.9,3791.4,2.63754]
[1717237603664,0.09507823,3791.9,3791.3,2.292]
[1717237603861,0.40926782,3791.8,3791.1,0.41273854]
[1717237604090,0.09507823,3791.9,3791.1,0.41273854]
[1717237604229,7.0506,3792.0,3791.1,0.41273854]
[1717237604230,0.09506155,3791.7,3791.1,0.41273854]
[1717237604426,0.09506748,3791.8,3791.1,0.41273854]
[1717237604664,7.0506,3792.0,3791.1,0.41273854]
[1717237604665,0.09505987,3791.6,3791.1,0.41273854]
[1717237604838,0.09506368,3791.7,3791.1,0.41273854]
[1717237605035,7.0506,3792.0,3791.1,0.41273854]
[1717237605036,0.09505607,3791.5,3791.1,0.41273854]
[1717237605261,2.54765987,3791.6,3791.1,0.41273854]
[1717237605566,0.09506467,3791.5,3791.1,0.41273854]
[1717237624513,2.2606,3791.7,3791.1,0.41273854]
[1717237624845,0.45494146,3791.6,3791.1,0.41273854]
[1717237629922,0.45494146,3791.6,3791.0,0.70506]
[1717237629923,1.08894146,3791.6,3791.0,0.70506]
[1717237634297,1.08894146,3791.6,3790.9,0.02021473]
[1717237634494,2.2606,3791.5,3790.9,0.02021473]
[1717237634719,0.09495858,3791.4,3790.9,0.02021473]
[1717237639031,0.09495858,3791.4,3790.9,2.44601473]
[1717237639542,0.634,3791.6,3790.9,0.02021473]
[1717237639736,0.09493318,3791.3,3790.9,0.02021473]
[1717237639943,0.634,3791.6,3790.9,0.02021473]
[1717237640436,0.09494079,3791.5,3790.9,0.02021473]
[1717237648562,2.3768,3791.4,3790.9,0.02021473]
[1717237648764,0.09493318,3791.3,3790.9,0.02021473]
[1717237651730,0.634,3791.0,3790.9,0.02021473]
[1717237652265,0.72877057,3791.0,3790.9,0.02021473]
[1717237655172,0.09477057,3791.0,3790.9,0.02021473]
[1717237655335,0.88117332,3791.2,3790.9,0.02021473]
[1717237655771,0.09464786,3791.1,3790.9,0.02021473]
[1717237669997,0.09464786,3791.1,3790.9,2.30991473]
[1717237670361,2.63742,3791.6,3790.9,2.30991473]
[1717237670559,0.556772,3791.5,3790.9,2.30991473]
[1717237670800,0.65129,3791.5,3790.9,2.30991473]
[1717237676271,0.634,3791.4,3790.9,2.30991473]
[1717237676666,0.09451039,3791.3,3790.9,0.02021473]
[1717237676866,0.35815824,3791.2,3790.9,0.02021473]
[1717237677068,0.45266482,3791.2,3790.9,0.02021473]
[1717237678410,1.08666482,3791.2,3790.9,0.02021473]
[1717237679691,1.08564369,3791.2,3790.9,0.02021473]
[1717237681989,0.634,3791.0,3790.9,0.02021473]
[1717237682184,1.23596637,3791.0,3790.9,0.02021473]
[1717237682421,1.33037283,3791.0,3790.9,0.02021473]
[1717237691230,0.09440646,3791.0,3790.9,0.02021473]
[1717237691631,2.63772,3791.2,3790.9,0.02021473]
[1717237691853,0.09428122,3791.0,3790.9,0.02021473]
[1717237692143,2.63772,3791.2,3790.9,0.02021473]